bitfinex-derivatives/quotes_SOLF0:USTF0_20251224
["timestamp","ask_amount","ask_price","bid_price","bid_amount"]
[1766599417737,6.60241961,122.11,122.08,0.0521892]
[1766599418042,1.40241611,122.1,122.05,6.62]
[1766599418244,0.00241961,122.11,122.05,6.62]
[1766599418945,8.00483572,122.11,122.07,0.06168751]
[1766599419241,7.3754,122.1,122.07,0.06168751]
[1766599419431,8.00483572,122.11,122.01,6.62]
[1766599419432,6.6,122.08,122.01,6.62]
[1766599419633,1.40241611,122.07,122.01,6.62]
[1766599419841,8.77981611,122.07,122.01,6.62]
[1766599420345,0.05402391,122.05,122.03,0.0610785]
[1766599424344,6.6,122.08,122.03,0.0610785]
[1766599425144,13.9767,122.08,122.03,0.0610785]
[1766599425345,0.05762073,122.07,122.03,0.0610785]
[1766599425746,1.40241611,122.09,122.03,6.6810785]
[1766599426053,8.00241611,122.12,122.03,6.6810785]
[1766599426349,1.40241611,122.1,122.03,6.62]
[1766599426551,8.00241611,122.1,122.03,6.62]
[1766599426851,6.6,122.07,122.05,0.00348658]
[1766599427050,6.6,122.07,122.01,6.62]
[1766599428047,7.43441389,122.05,121.99,6.62]
[1766599428254,7.3785,122.05,121.99,6.62]
[1766599429045,0.05719601,122.03,122.01,0.05271219]
[1766599429542,6.65719601,122.03,121.97,6.62]
[1766599430747,6.65719601,122.03,121.99,0.05246782]
[1766599431652,14.03689601,122.03,121.99,0.05246782]
[1766599433754,7.3804,122.02,121.99,0.05246782]
[1766599433959,8.00241611,122.02,121.95,6.62]
[1766599434754,6.6,122.01,121.95,6.62]
[1766599434956,0.05877765,121.99,121.97,0.06180573]
[1766599435154,6.65877765,121.99,121.92,6.62]
[1766599435348,6.6,122.02,121.94,6.62]
[1766599435956,6.6,122.02,121.96,6.62]
[1766599436350,0.05959432,122.0,121.98,0.06070753]
[1766599438164,7.38,122.03,121.98,0.06070753]
[1766599438360,13.98,122.03,121.98,0.06070753]
[1766599439164,0.05626506,122.02,121.98,0.06070753]
[1766599439564,0.05626506,122.02,121.98,6.68070753]
[1766599441463,14.0576,122.07,121.99,6.29]
[1766599441668,14.0576,122.07,121.99,7.69241611]
[1766599442567,0.05588219,122.04,122.02,0.05881517]
[1766599446764,14.0576,122.07,122.02,0.05881517]
[1766599447774,0.06128626,122.06,122.02,0.05881517]
[1766599448876,7.43928626,122.06,122.02,0.05881517]
[1766599451980,14.0587,122.05,122.02,0.05881517]
[1766599454677,6.68,122.05,122.02,0.05881517]
[1766599454883,7.43908626,122.06,122.02,0.05881517]
[1766599455181,14.11908626,122.06,122.02,0.05881517]
[1766599455685,6.74128626,122.06,122.02,0.05881517]
[1766599455884,0.06128626,122.06,122.02,0.05881517]
[1766599457988,0.06128626,122.06,122.02,6.34881517]
[1766599458380,6.68,122.12,122.02,6.34881517]
[1766599458581,7.3748,122.11,122.05,13.6683]
[1766599459481,0.05404498,122.09,122.07,0.05431823]
[1766599461087,6.68,122.15,122.07,6.34431823]
[1766599461285,6.68,122.15,122.07,6.29]
[1766599462082,0.05969118,122.12,122.1,0.05894261]
[1766599462279,6.68,122.13,122.07,13.6672]
[1766599463187,0.06244285,122.11,122.09,0.06158703]
[1766599466082,6.74244285,122.11,122.03,13.669]
[1766599466290,6.68,122.11,122.03,13.669]
[1766599466589,6.68,122.1,122.03,13.669]
[1766599467089,0.06220569,122.08,122.05,0.05617996]
[1766599468688,6.68,122.07,122.01,6.29]
[1766599469696,0.05278069,122.05,122.03,0.05383775]
[1766599471295,6.68,122.07,122.03,0.05383775]
[1766599472292,0.05205647,122.06,122.03,0.05383775]
[1766599473995,0.05205647,122.06,122.03,6.65383775]
[1766599474200,6.26,122.09,122.03,6.65383775]
[1766599475193,0.05647036,122.07,122.03,6.65383775]
[1766599475393,6.26,122.14,122.04,6.6]
[1766599476398,0.05791413,122.1,122.08,0.06170939]
[1766599476701,0.05791413,122.1,122.08,0.00170939]
[1766599495520,6.73791413,122.1,122.08,0.00170939]
[1766599503124,0.05791413,122.1,122.08,0.00170939]
[1766599505727,2.19465949,122.16,122.08,6.29170939]
[1766599505728,6.5,122.16,122.08,6.29170939]
[1766599505916,6.5,122.16,122.08,6.29]
[1766599506226,6.5,122.16,122.1,7.3753]
[1766599506227,6.5,122.15,122.1,7.3753]
[1766599506625,0.05420666,122.14,122.11,0.05982466]
[1766599507310,6.55420666,122.14,122.08,13.666]
[1766599508328,6.55420666,122.14,122.1,0.05382082]
[1766599512321,13.92720666,122.14,122.1,0.05382082]
[1766599516030,6.55420666,122.14,122.1,0.05382082]
[1766599518034,0.05420666,122.14,122.1,6.34382082]
[1766599519138,0.05420666,122.14,122.1,0.05382082]
[1766599521230,6.55420666,122.14,122.1,0.05382082]
[1766599525037,6.55420666,122.14,122.1,7.42902082]
[1766599525235,0.05420666,122.14,122.1,6.34382082]
[1766599525944,6.5,122.18,122.12,7.3741]
[1766599527029,0.05831118,122.16,122.14,0.05905528]
[1766599528239,0.05831118,122.16,122.11,6.29]
[1766599529336,0.05831118,122.16,122.12,0.05787884]
[1766599529536,6.55831118,122.16,122.12,0.05787884]
[1766599531632,0.05831118,122.16,122.12,6.58787884]
[1766599533546,0.05831118,122.16,122.13,7.3735]
[1766599539051,0.05831118,122.16,122.12,13.96197884]
[1766599539648,0.05831118,122.16,122.13,13.8334]
[1766599540951,0.05831118,122.16,122.13,6.46]
[1766599541454,6.23,122.2,122.15,6.46]
[1766599542351,3.41840046,122.22,122.15,13.832]
[1766599542352,9.64840046,122.22,122.15,13.832]
[1766599542564,0.06089014,122.2,122.17,0.06280272]
[1766599544251,0.00089014,122.2,122.17,6.52280272]
[1766599545248,0.00089014,122.2,122.17,13.89390272]
[1766599545847,0.00089014,122.2,122.17,6.52280272]
[1766599550663,7.63369991,122.2,122.17,0.00280272]
[1766599550858,7.63369991,122.2,122.11,6.46]
[1766599551063,1.40280977,122.18,122.11,6.46]
[1766599551249,7.63280977,122.18,122.11,6.46]
[1766599551854,7.63280977,122.18,122.13,0.05258362]
[1766599552058,0.05488032,122.16,122.13,0.05258362]
[1766599555458,0.00488032,122.16,122.13,6.51258362]
[1766599557365,0.00488032,122.16,122.13,13.88598362]
[1766599559063,0.00488032,122.16,122.14,7.3729]
[1766599560067,0.00488032,122.16,122.15,7.3724]
[1766599561866,0.00488032,122.16,122.15,13.4224]
[1766599565568,6.23,122.21,122.15,13.4224]
[1766599566474,0.06277269,122.19,122.17,0.05337636]
[1766599567178,0.00277269,122.19,122.17,6.10337636]
[1766599568072,0.00277269,122.19,122.18,13.4205]
[1766599570878,0.00277269,122.19,122.18,6.05]
[1766599572172,0.00277269,122.19,122.18,13.4205]
[1766599572867,0.00277269,122.19,122.17,7.42447636]
[1766599573076,0.00277269,122.19,122.17,0.05337636]
[1766599575475,6.49277269,122.19,122.17,0.00337636]
[1766599575676,6.49277269,122.19,122.12,102.73]
[1766599576177,6.49277269,122.19,122.13,6.05]
[1766599576583,6.49277269,122.19,122.15,0.06255897]
[1766599582380,0.00277269,122.19,122.15,6.11255897]
[1766599583292,0.00277269,122.19,122.16,6.05]
[1766599586792,0.00277269,122.19,122.15,0.06255897]
[1766599588999,0.00277269,122.19,122.15,7.43475897]
[1766599590085,0.00277269,122.19,122.15,0.06255897]
[1766599592600,6.16277269,122.19,122.15,0.06255897]
[1766599593191,13.53277269,122.19,122.15,0.06255897]
[1766599593504,6.16,122.18,122.15,0.00255897]
[1766599593992,6.16,122.17,122.15,0.00255897]
[1766599595298,13.5314,122.17,122.15,0.00255897]
[1766599595591,6.16,122.17,122.15,0.00255897]
[1766599598496,0.00277269,122.19,122.15,0.00255897]
[1766599601097,0.00277269,122.19,122.15,6.27255897]
[1766599601301,6.56,122.29,122.19,6.27]
[1766599601597,4.28239767,122.34,122.19,6.27]
[1766599601598,6.56,122.31,122.22,6.27]
[1766599601809,6.56,122.31,122.24,6.27]
[1766599602309,6.56,122.31,122.26,0.05915074]
[1766599602310,0.06038211,122.29,122.26,0.05915074]
[1766599602513,6.62038211,122.29,122.19,12.37546518]
[1766599602813,6.56,122.29,122.2,6.27]
[1766599603716,0.05493747,122.26,122.23,0.05671126]
[1766599605215,0.00493747,122.26,122.23,6.32671126]
[1766599606620,0.00493747,122.26,122.23,13.69401126]
[1766599608523,6.56,122.3,122.23,13.69401126]
[1766599608713,6.56,122.3,122.24,7.3667]
[1766599608916,6.56,122.33,122.24,6.27]
[1766599609520,6.56,122.33,122.27,7.42258568]
[1766599609723,6.56,122.33,122.27,0.05788568]
[1766599610723,0.05911122,122.31,122.27,0.05788568]
[1766599611425,6.61911122,122.31,122.27,0.05788568]
[1766599613326,6.61911122,122.31,122.22,6.27]
[1766599613528,6.56,122.31,122.22,6.27]
[1766599614022,6.56,122.3,122.22,6.27]
[1766599614230,6.62064211,122.28,122.25,0.05406765]
[1766599614421,6.62064211,122.28,122.25,0.05819004]
[1766599615123,0.06064211,122.28,122.25,0.05819004]
[1766599619325,6.62064211,122.28,122.25,0.05819004]
[1766599620321,0.06064211,122.28,122.25,0.05819004]
[1766599620832,6.62064211,122.28,122.21,6.27]
[1766599621139,6.56,122.28,122.18,7.57981261]
[1766599621434,6.56,122.28,122.2,7.3689]
[1766599621932,24.59,122.34,122.23,0.00189059]
[1766599621933,0.05211846,122.25,122.23,0.00189059]
[1766599622134,6.42,122.26,122.21,7.3687]
[1766599622836,0.06129508,122.25,122.22,0.05390302]
[1766599625833,6.48129508,122.25,122.22,0.00390302]
[1766599629034,6.48129508,122.25,122.19,7.3699]
[1766599630134,6.48129508,122.25,122.21,0.05491834]
[1766599630639,6.42,122.24,122.21,0.05491834]
[1766599631043,6.42,122.24,122.21,0.00491834]
[1766599632441,13.7872,122.24,122.21,0.00491834]
[1766599634343,6.48129508,122.25,122.21,0.00491834]
[1766599640849,6.42,122.24,122.21,0.00491834]
[1766599643353,6.42,122.23,122.21,0.00491834]
[1766599646254,13.7876,122.23,122.17,7.3706]
[1766599647156,0.05922389,122.21,122.19,0.06223387]
[1766599649354,13.7859,122.26,122.19,13.73203387]
[1766599649554,13.7859,122.26,122.19,6.36223387]
[1766599649758,6.42,122.25,122.19,6.36223387]
[1766599650554,0.06158495,122.23,122.2,7.3692]
[1766599653763,6.42,122.25,122.2,7.3692]
[1766599654557,6.42,122.25,122.2,14.0192]
[1766599654767,0.05495732,122.24,122.2,14.0192]
[1766599657265,0.05495732,122.24,122.2,21.60778215]
[1766599659065,6.18,122.28,122.21,6.53]
[1766599659466,6.18,122.28,122.21,14.11858215]
[1766599660064,6.18,122.28,122.22,7.368]
[1766599660366,0.06146733,122.26,122.24,0.05711016]
[1766599661260,0.06146733,122.26,122.23,7.58858215]
[1766599661461,0.06146733,122.26,122.22,7.58858215]
[1766599661762,6.24146733,122.26,122.21,7.64392337]
[1766599661967,6.24146733,122.26,122.18,16.7166679]
[1766599662266,0.05150953,122.23,122.21,0.05258439]
[1766599665768,6.23150953,122.23,122.18,16.7166679]
[1766599666064,6.23150953,122.23,122.18,6.53]
[1766599666963,6.23150953,122.23,122.19,0.06098766]
[1766599667572,13.59910953,122.23,122.19,0.06098766]
[1766599667869,6.18,122.22,122.19,0.06098766]
[1766599668174,13.549,122.21,122.15,2.8819778]
[1766599668475,13.549,122.21,122.15,13.0686457]
[1766599668973,13.549,122.21,122.15,19.5986457]
[1766599669174,0.05820122,122.19,122.17,0.05666194]
[1766599675977,6.18,122.23,122.17,6.58666194]
[1766599676675,13.5476,122.23,122.17,13.95736194]
[1766599676876,0.06265999,122.21,122.17,13.95736194]
[1766599677867,0.06265999,122.21,122.17,6.58666194]
[1766599678178,0.06265999,122.21,122.17,16.77332984]
[1766599679576,0.06265999,122.21,122.18,7.3705]
[1766599681675,6.71,122.25,122.19,6.73]
[1766599682278,6.71,122.25,122.19,14.0994]
[1766599682673,0.05854868,122.23,122.21,0.05237858]
[1766599682873,6.76854868,122.23,122.18,10.1866679]
[1766599683074,6.76854868,122.23,122.17,14.1007]
[1766599683274,6.76854868,122.23,122.17,6.73]
[1766599683974,14.13634868,122.23,122.19,0.05683831]
[1766599684676,6.71,122.22,122.19,0.05683831]
[1766599684876,14.0782,122.22,122.19,0.05683831]
[1766599685779,6.71,122.21,122.15,16.9842778]
[1766599686684,0.05889406,122.19,122.17,0.05677196]
[1766599693986,6.76889406,122.19,122.13,14.1034]
[1766599694185,6.76889406,122.19,122.11,6.73]
[1766599694386,6.71,122.19,122.11,6.73]
[1766599694995,0.05860013,122.16,122.14,0.05941902]
[1766599697594,14.0799,122.2,122.14,14.16231902]
[1766599697795,6.71,122.2,122.14,14.16231902]
[1766599698503,6.71,122.2,122.14,0.05941902]
[1766599698700,6.76882005,122.18,122.14,0.05941902]
[1766599698897,6.76882005,122.18,122.15,0.06107448]
[1766599699603,14.13962005,122.18,122.15,0.06107448]
[1766599701603,14.13962005,122.18,122.12,14.1037]
[1766599702506,14.13962005,122.18,122.14,0.061927]
[1766599705410,0.05882005,122.18,122.14,6.791927]
[1766599705611,0.05882005,122.18,122.14,0.061927]
[1766599708102,0.05882005,122.18,122.14,6.791927]
[1766599708303,0.05882005,122.18,122.14,14.164827]
[1766599708910,0.05882005,122.18,122.14,6.791927]
[1766599709515,0.05882005,122.18,122.14,14.164527]
[1766599710308,6.71,122.21,122.15,14.102]
[1766599710510,6.71,122.21,122.16,6.73]
[1766599711314,0.06040612,122.2,122.17,0.06263874]
[1766599712316,6.35040612,122.2,122.17,0.06263874]
[1766599717923,6.35040612,122.2,122.17,0.00263874]
[1766599718621,14.26,122.19,122.17,0.00263874]
[1766599719124,6.89,122.18,122.17,0.00263874]
[1766599719618,14.2605,122.18,122.17,0.00263874]
[1766599720123,14.2612,122.17,122.12,6.8]
[1766599721023,0.05572321,122.16,122.13,0.06198103]
[1766599722222,0.05572321,122.16,122.13,6.86198103]
[1766599722420,6.89,122.21,122.13,6.86198103]
[1766599722627,6.89,122.21,122.14,6.8]
[1766599723424,0.05526547,122.19,122.16,0.05858028]
[1766599734032,6.94526547,122.19,122.16,0.05858028]
[1766599734233,14.31536547,122.19,122.16,0.05858028]
[1766599734624,7.3706,122.18,122.16,0.05858028]
[1766599735222,6.89,122.17,122.11,6.8]
[1766599735529,6.89,122.17,122.09,6.8]
[1766599735933,6.89,122.16,122.09,6.8]
[1766599736234,0.05994932,122.14,122.11,0.0543882]
[1766599736623,7.43314932,122.14,122.11,0.0543882]
[1766599738735,14.32314932,122.14,122.11,0.0543882]
[1766599740534,7.3737,122.13,122.09,6.8]
[1766599740734,6.89,122.13,122.05,6.8]
[1766599741636,2.18960404,122.15,122.05,6.8]
[1766599741637,0.05693865,122.1,122.08,0.05996188]
[1766599741834,0.05171037,122.1,122.08,0.05996188]
[1766599743531,0.00171037,122.1,122.08,0.05996188]
[1766599745246,24.55,122.2,122.08,6.59996188]
[1766599745247,13.8728,122.15,122.08,6.59996188]
[1766599745436,13.8728,122.15,122.08,6.54]
[1766599746343,0.05342016,122.13,122.1,0.05444684]
[1766599747530,13.92712016,122.13,122.1,0.00444684]
[1766599748940,13.92712016,122.13,122.06,6.54]
[1766599749531,7.3742,122.12,122.06,6.54]
[1766599749936,0.05505037,122.1,122.08,0.06025912]
[1766599750945,0.05505037,122.1,122.06,6.54]
[1766599751243,6.55505037,122.1,122.02,6.54]
[1766599751435,7.3767,122.08,122.02,6.54]
[1766599752042,0.05330317,122.06,122.04,0.0570816]
[1766599757552,6.5,122.09,122.04,0.0570816]
[1766599758555,0.06177729,122.08,122.04,0.0570816]
[1766599759273,0.06177729,122.08,122.04,6.5970816]
[1766599760254,0.00177729,122.08,122.04,6.5970816]
[1766599760557,0.00177729,122.08,122.05,7.3784]
[1766599760760,0.00177729,122.08,122.05,13.9184]
[1766599762054,0.00177729,122.08,122.06,6.54]
[1766599766662,6.50177729,122.08,122.04,0.0570816]
[1766599769169,13.87837729,122.08,122.04,0.0570816]
[1766599769672,6.50177729,122.08,122.04,0.0570816]
[1766599771663,13.87837729,122.08,122.04,0.0570816]
[1766599773772,7.3772,122.07,122.04,0.0570816]
[1766599776070,14.2172,122.07,122.04,0.0570816]
[1766599776269,8.24418105,122.06,121.99,14.1714]
[1766599776473,6.84,122.09,122.0,8.19418105]
[1766599776862,8.01418105,122.08,122.0,6.79]
[1766599777066,15.39078105,122.08,122.01,7.3805]
[1766599777268,0.05181484,122.05,122.03,0.05758021]
[1766599791171,6.66181484,122.05,121.99,7.64872925]
[1766599791481,6.66181484,122.05,121.97,10.46390131]
[1766599791681,8.01418105,122.04,121.95,7.64872925]
[1766599791876,8.01418105,122.04,121.96,7.64872925]
[1766599792386,6.61,122.04,121.99,0.06155671]
[1766599793085,7.3797,122.03,121.99,0.06155671]
[1766599793480,0.056158,122.02,121.99,0.06155671]
[1766599804589,6.66,122.01,121.99,0.00155671]
[1766599805787,6.66,121.99,121.91,6.82]
[1766599805986,3.17,121.97,121.91,6.82]
[1766599806689,0.05771501,121.95,121.93,0.05450062]
[1766599814493,3.42771501,121.95,121.93,0.00450062]
[1766599814994,3.32,121.93,121.87,14.2092]
[1766599815195,3.32,121.93,121.87,6.82]
[1766599815900,0.0521633,121.91,121.89,0.06066569]
[1766599816284,3.3921633,121.91,121.85,6.82]
[1766599817182,3.3921633,121.91,121.87,0.05192647]
[1766599822397,10.7792633,121.91,121.87,0.05192647]
[1766599822598,3.41,121.9,121.87,0.05192647]
[1766599825003,3.45,121.89,121.83,6.82]
[1766599825605,3.45,121.89,121.81,6.82]
[1766599825901,3.47,121.88,121.81,6.82]
[1766599826206,0.0518874,121.86,121.83,0.05745306]
[1766599827307,0.0518874,121.86,121.83,6.87745306]
[1766599828004,0.0518874,121.86,121.83,0.05745306]
[1766599831110,0.0518874,121.86,121.76,2.20032501]
[1766599831111,3.6018874,121.86,121.77,6.82]
[1766599831406,10.9402,121.86,121.79,14.2641]
[1766599832007,0.05522732,121.84,121.81,0.0614529]
[1766599832804,10.9491,121.88,121.81,6.9314529]
[1766599833210,3.56,121.88,121.81,6.9314529]
[1766599833804,2.20032501,121.9,121.81,0.0614529]
[1766599833805,3.68874563,121.86,121.81,0.0614529]
[1766599834109,3.68874563,121.86,121.82,0.05791525]
[1766599834508,11.07874563,121.86,121.82,0.05791525]
[1766599834704,3.68874563,121.86,121.82,0.05791525]
[1766599843515,0.05874563,121.86,121.82,7.28791525]
[1766599843718,3.81,121.9,121.82,7.28791525]
[1766599843912,3.81,121.9,121.82,7.23]
[1766599844722,0.06279203,121.87,121.85,0.06267075]
[1766599848221,0.00279203,121.87,121.85,7.29267075]
[1766599848628,3.98,121.91,121.85,7.29267075]
[1766599849623,0.05717093,121.89,121.85,14.68287075]
[1766599851026,0.05717093,121.89,121.85,0.06267075]
[1766599851215,4.07717093,121.89,121.85,0.06267075]
[1766599855231,0.05717093,121.89,121.86,7.23]
[1766599855733,0.05717093,121.89,121.85,0.06267075]
[1766599856929,4.14717093,121.89,121.85,0.06267075]
[1766599859132,4.06,121.87,121.85,0.00267075]
[1766599859334,4.06,121.87,121.8,7.23]
[1766599860034,11.4493,121.87,121.8,14.6235]
[1766599860426,0.05757262,121.85,121.82,0.05517787]
[1766599861133,4.13757262,121.85,121.78,14.6242]
[1766599861334,4.13757262,121.85,121.79,7.3941]
[1766599861723,0.05757262,121.85,121.8,7.57]
[1766599861927,4.04,121.87,121.8,7.57]
[1766599862133,4.04,121.87,121.78,10.1866679]
[1766599862134,0.05538647,121.84,121.81,7.63013215]
[1766599862540,0.05538647,121.84,121.81,15.02303215]
[1766599862834,0.05538647,121.84,121.81,0.06013215]
[1766599867038,4.14538647,121.84,121.81,0.06013215]
[1766599870447,0.05538647,121.84,121.81,0.06013215]
[1766599871434,4.13,121.86,121.81,15.02303215]
[1766599872547,0.05522495,121.85,121.81,15.02303215]
[1766599873544,0.05522495,121.85,121.82,14.9622]
[1766599873748,4.17,121.88,121.82,14.9622]
[1766599874846,0.05357687,121.86,121.84,0.05992606]
[1766599880851,4.23357687,121.86,121.8,7.57]
[1766599881251,4.18,121.84,121.78,7.57]
[1766599881855,4.25138833,121.82,121.8,0.00192055]
[1766599882055,24.55,121.89,121.74,4.99147849]
[1766599882056,4.14,121.8,121.74,4.99147849]
[1766599882244,11.5325,121.82,121.75,7.57]
[1766599882448,12.94152896,121.82,121.75,7.57]
[1766599882955,0.0532938,121.8,121.77,0.05681178]
[1766599889459,0.0532938,121.8,121.77,7.62681178]
[1766599889760,4.2,121.83,121.77,7.62681178]
[1766599890354,5.61902896,121.87,121.79,7.57]
[1766599890556,4.21,121.87,121.79,8.97902896]
[1766599890748,0.00388782,121.84,121.82,0.05946581]
[1766599900379,0.00388782,121.84,121.82,7.39946581]
[1766599901462,0.00388782,121.84,121.82,0.05946581]
[1766599905873,0.00388782,121.84,121.82,7.39946581]
[1766599906674,0.00388782,121.84,121.82,0.05946581]
[1766599923299,4.45388782,121.84,121.79,7.78]
[1766599923597,0.00388782,121.84,121.79,7.78]
[1766599924395,7.39508782,121.84,121.8,0.06077895]
[1766599924796,11.85508782,121.84,121.8,0.06077895]
[1766599925694,5.87291678,121.84,121.8,0.06077895]
[1766599925898,4.46,121.83,121.8,0.06077895]
[1766599926203,11.8517,121.83,121.8,0.06077895]
[1766599932407,4.46,121.83,121.8,0.06077895]
[1766599934106,0.00388782,121.84,121.8,7.84077895]
[1766599934601,0.00388782,121.84,121.81,7.78]
[1766599939005,4.53,121.89,121.81,7.78]
[1766599939209,4.53,121.91,121.82,7.78]
[1766599939804,4.53,121.91,121.83,7.78]
[1766599939998,0.05210822,121.88,121.86,0.05558931]
[1766599940402,4.53,121.91,121.86,0.05558931]
[1766599940614,11.9169,121.91,121.86,0.05558931]
[1766599941115,4.53,121.91,121.86,7.83558931]
[1766599941606,0.05554513,121.9,121.86,7.83558931]
[1766599950603,7.92554513,121.9,121.8,12.38852171]
[1766599950802,7.87,121.9,121.8,12.38852171]
[1766599951605,7.3881,121.89,121.84,0.06225887]
[1766599952610,0.05440043,121.88,121.84,7.71225887]
[1766599952806,0.05440043,121.88,121.84,15.10335887]
[1766599953008,0.05440043,121.88,121.85,7.65]
[1766599957115,0.05440043,121.88,121.84,0.06225887]
[1766599957413,0.05440043,121.88,121.84,7.79225887]
[1766599958209,0.00440043,121.88,121.84,7.79225887]
[1766599961217,0.00440043,121.88,121.84,15.18335887]
[1766599961404,0.00440043,121.88,121.85,7.73]
[1766599963619,0.00440043,121.88,121.85,15.1204]
[1766599963922,0.00440043,121.88,121.86,7.73]
[1766599964419,7.3864,121.92,121.86,7.73]
[1766599964718,15.3664,121.92,121.86,7.73]
[1766599965215,15.3664,121.92,121.88,0.06208043]
[1766599965410,0.05215948,121.9,121.88,0.06208043]
[1766599968523,15.3656,121.94,121.88,7.79208043]
[1766599969517,0.06019861,121.92,121.88,7.79208043]
[1766599973213,8.04019861,121.92,121.88,0.06208043]
[1766599973523,7.98,121.91,121.84,7.73]
[1766599973917,7.3881,121.89,121.84,7.73]
[1766599974118,7.98,121.88,121.82,7.73]
[1766599974623,0.06097215,121.86,121.84,0.05532858]
[1766599978726,15.368,121.9,121.84,7.78532858]
[1766599979330,7.3883,121.89,121.84,7.78532858]
[1766599979723,0.05903655,121.88,121.84,7.78532858]
[1766599980232,0.05903655,121.88,121.85,7.73]
[1766599980716,7.3872,121.91,121.85,7.73]
[1766599980920,7.3863,121.92,121.86,7.73]
[1766599981420,7.3856,121.94,121.86,7.73]
[1766599981620,16.19178734,121.99,121.86,7.73]
[1766599981621,7.55,121.97,121.87,8.29]
[1766599981822,7.55,121.97,121.91,0.05313284]
[1766599983029,0.05806024,121.95,121.91,8.34313284]
[1766599983532,7.55,121.99,121.91,8.34313284]
[1766599983832,7.55,121.99,121.91,8.29]
[1766599984128,7.55,121.99,121.93,8.29]
[1766599984329,0.05541343,121.97,121.95,0.05233324]
[1766599984721,7.55,122.02,121.95,8.34233324]
[1766599985536,14.9303,122.02,121.95,8.34233324]
[1766599985728,0.0607329,122.0,121.95,8.34233324]
[1766599987532,0.0607329,122.0,121.95,15.72663324]
[1766599987727,0.0607329,122.0,121.96,8.29]
[1766599988640,0.0007329,122.0,121.97,8.29]
[1766599988934,7.55,122.06,121.97,8.29]
[1766599989924,0.05606494,122.03,122.0,0.05790322]
[1766599990124,7.55,122.06,122.0,8.34790322]
[1766599991134,0.05931438,122.04,122.0,8.34790322]
[1766599991434,0.05931438,122.04,122.0,0.05790322]
[1766599992129,14.98851438,122.04,122.0,0.05790322]
[1766599992330,7.60931438,122.04,122.0,0.05790322]
[1766599993135,0.05931438,122.04,122.0,0.05790322]
[1766599993337,0.05931438,122.04,122.0,8.34790322]
[1766599995021,0.05931438,122.04,122.0,0.05790322]
[1766599995229,7.55,122.03,121.96,8.29]
[1766599996332,0.05485855,122.01,121.98,0.05872068]
[1766599998238,7.3793,122.04,121.98,0.05872068]
[1766599998537,7.3793,122.04,121.98,8.34872068]
[1766599999346,0.06085363,122.02,121.98,8.34872068]
[1766600001538,7.55,122.06,121.98,8.34872068]
[1766600001842,8.95539085,122.05,121.98,8.29]
[1766600002341,16.33399085,122.05,121.98,8.29]
[1766600002535,0.05870845,122.03,122.0,0.05670987]
[1766600002934,7.60870845,122.03,122.0,0.05670987]
[1766600004037,7.60870845,122.03,121.98,8.29]
[1766600004540,14.98840845,122.03,121.98,8.29]
[1766600004929,0.05870845,122.03,121.99,0.06168721]
[1766600005131,8.95539085,122.06,121.99,8.35168721]
[1766600005342,8.95539085,122.06,121.99,8.29]
[1766600005741,7.3791,122.04,121.99,8.29]
[1766600006046,0.05699867,122.03,122.0,0.0582788]
[1766600007336,0.05699867,122.03,121.99,8.29]
[1766600007337,7.55,122.01,121.94,8.29]
[1766600007533,8.95539085,122.03,121.94,8.29]
[1766600008438,8.95539085,122.03,121.97,0.05694199]
[1766600008439,0.05760405,122.0,121.97,0.05694199]
[1766600011441,0.05760405,122.0,121.94,8.29]
[1766600012536,0.05760405,122.0,121.96,0.05623828]
[1766600013646,0.05760405,122.0,121.96,7.71623828]
[1766600013852,9.83539085,122.03,121.96,7.71623828]
[1766600015037,0.00264367,122.01,121.97,7.66]
[1766600015440,8.43,122.05,121.97,7.66]
[1766600015642,8.43,122.05,121.99,7.66]
[1766600016450,0.06319457,122.03,122.01,0.06206941]
[1766600029562,0.00319457,122.03,122.01,0.06206941]
[1766600037870,15.70289457,122.03,121.98,8.08]
[1766600038974,15.70289457,122.03,121.99,0.05794517]
[1766600040573,0.00319457,122.03,122.0,8.08]
[1766600041972,0.00319457,122.03,121.99,0.05794517]
[1766600042173,1.40539085,122.02,121.99,0.05794517]
[1766600042377,1.40539085,122.02,121.96,8.14]